fUST/lending_fUST_20240621
["ID","MTS","AMOUNT","RATE_DAILY","PERIOD"]
[329995635,1718907050780,-500.0,0.00055342,2]
[329995636,1718907050795,-500.0,0.00055342,120]
[329995637,1718907050808,-581.33,0.00055342,120]
[329995638,1718907050822,-513.08969782,0.00055342,120]
[329995639,1718907050837,-151.0,0.00055342,120]
[329995640,1718907050852,-500.0,0.00055342,120]
[329995641,1718907050866,-826.52,0.00055342,120]
[329995642,1718907050881,-500.0,0.00055342,120]
[329995643,1718907050895,-500.0,0.00055342,120]
[329995644,1718907050915,-500.0,0.00055342,120]
[329995645,1718907050929,-500.0,0.00055342,120]
[329995646,1718907050943,-151.0,0.00055342,120]
[329995647,1718907050960,-500.0,0.00055342,120]
[329995648,1718907050974,-500.0,0.00055342,120]
[329995649,1718907050991,-500.0,0.00055342,120]
[329995650,1718907051007,-500.0,0.00055342,120]
[329995651,1718907051021,-500.0,0.00055342,120]
[329995652,1718907051035,-500.0,0.00055342,120]
[329995653,1718907051050,-538.86,0.00055342,120]
[329995654,1718907051064,-500.0,0.00055342,120]
[329995655,1718907051078,-500.0,0.00055342,120]
[329995656,1718907051093,-151.0,0.00055342,120]
[329995657,1718907051107,-507.6324563,0.00055342,120]
[329995658,1718907051122,-500.0,0.00055342,120]
[329995659,1718907051138,-500.0,0.00055342,120]
[329995660,1718907051152,-500.0,0.00055342,120]
[329995661,1718907051169,-151.0,0.00055342,120]
[329995662,1718907051180,-321.27869611,0.00055342,120]
[329995663,1718907051189,-500.0,0.00055342,120]
[329995664,1718907051199,-1000.0,0.00055342,120]
[329995665,1718907051283,-500.0,0.00055342,120]
[329995666,1718907051323,-500.0,0.00055342,120]
[329995667,1718907051333,-216.426341,0.00055342,120]
[329995668,1718907051342,-500.0,0.00055342,120]
[329995669,1718907051351,-500.0,0.00055342,30]
[329995670,1718907051360,-500.0,0.00055342,120]
[329995671,1718907051370,-500.0,0.00055342,120]
[329995672,1718907051379,-506.3659435,0.00055342,120]
[329995673,1718907051388,-500.0,0.00055342,120]
[329995674,1718907051398,-500.0,0.00055342,120]
[329995675,1718907051409,-500.0,0.00055342,120]
[329995676,1718907051419,-500.0,0.00055342,120]
[329995677,1718907051428,-500.0,0.00055342,120]
[329995678,1718907051438,-2062.89,0.00055342,120]
[329995679,1718907051447,-500.0,0.00055342,120]
[329995680,1718907051457,-500.0,0.00055342,120]
[329995681,1718907051466,-750.16,0.00055342,120]
[329995682,1718907051475,-500.0,0.00055342,120]
[329995683,1718907051484,-500.0,0.00055342,120]
[329995684,1718907051493,-200.0,0.00055342,7]
[329995685,1718907051502,-500.0,0.00055342,120]
[329995686,1718907051511,-500.0,0.00055342,120]
[329995687,1718907051520,-500.0,0.00055342,120]
[329995688,1718907051530,-500.0,0.00055342,120]
[329995689,1718907051540,-153.021532,0.00055342,120]
[329995690,1718907051549,-500.0,0.00055342,120]
[329995691,1718907051559,-500.0,0.00055342,120]
[329995692,1718907051568,-500.0,0.00055342,120]
[329995693,1718907051577,-153.021532,0.00055342,120]
[329995694,1718907051586,-500.0,0.00055342,120]
[329995695,1718907051596,-500.0,0.00055342,120]
[329995696,1718907051605,-500.0,0.00055342,120]
[329995697,1718907051615,-500.0,0.00055342,120]
[329995698,1718907051623,-500.0,0.00055342,120]
[329995699,1718907051633,-500.0,0.00055342,120]
[329995700,1718907051642,-500.0,0.00055342,120]
[329995701,1718907051652,-500.98958676,0.00055342,2]
[329995702,1718907051666,-500.0,0.00055342,120]
[329995703,1718907051675,-500.0,0.00055342,20]
[329995704,1718907051685,-151.0,0.00055342,120]
[329995705,1718907051694,-500.0,0.00055342,120]
[329995706,1718907051704,-500.0,0.00055342,120]
[329995707,1718907051716,-500.0,0.00055342,120]
[329995708,1718907051726,-500.0,0.00055342,120]
[329995709,1718907051736,-500.0,0.00055342,120]
[329995710,1718907051746,-500.0,0.00055342,120]
[329995711,1718907051757,-500.0,0.00055342,120]
[329995712,1718907051767,-500.0,0.00055342,120]
[329995713,1718907051777,-500.0,0.00055342,120]
[329995714,1718907051786,-500.0,0.00055342,120]
[329995715,1718907051796,-609.77,0.00055342,2]
[329995716,1718907051806,-500.0,0.00055342,120]
[329995717,1718907051816,-1308.80475758,0.00055342,2]
[329995718,1718907051825,-500.0,0.00055342,120]
[329995719,1718907051835,-151.0,0.00055342,120]
[329995720,1718907051844,-500.0,0.00055342,120]
[329995721,1718907051853,-500.0,0.00055342,120]
[329995722,1718907051862,-504.87506414,0.00055342,120]
[329995723,1718907051871,-500.0,0.00055342,120]
[329995724,1718907051880,-500.0,0.00055342,120]
[329995725,1718907051889,-434.66526521,0.00055342,120]
[329995726,1718907051899,-500.0,0.00055342,120]
[329995727,1718907051914,-500.0,0.00055342,120]
[329995728,1718907051926,-500.0,0.00055342,120]
[329995729,1718907051934,-500.0,0.00055342,120]
[329995730,1718907051943,-513.51413735,0.00055342,120]
[329995731,1718907051955,-500.0,0.00055342,120]
[329995732,1718907051964,-505.82,0.00055342,120]
[329995733,1718907051974,-500.0,0.00055342,120]
[329995734,1718907051984,-500.0,0.00055342,120]
[329995735,1718907051994,-500.0,0.00055342,120]
[329995736,1718907052005,-414.19896619,0.00055342,120]
[329995737,1718907052014,-1691.82,0.00055342,120]
[329995738,1718907052024,-500.0,0.00055342,2]
[329995739,1718907052033,-500.0,0.00055342,120]
[329995740,1718907052042,-506.70224077,0.00055342,120]
[329995741,1718907052053,-3101.9,0.00055342,60]
[329995742,1718907052062,-500.0,0.00055342,120]
[329995743,1718907052071,-516.92,0.00055342,120]
[329995744,1718907052080,-500.0,0.00055342,120]
[329995745,1718907052090,-500.0,0.00055342,120]
[329995746,1718907052100,-500.0,0.00055342,120]
[329995747,1718907052110,-500.0,0.00055342,120]
[329995748,1718907052119,-500.0,0.00055342,120]
[329995749,1718907052129,-2662.65,0.00055342,120]
[329995750,1718907052138,-500.0,0.00055342,120]
[329995751,1718907052148,-500.0,0.00055342,120]
[329995752,1718907052159,-151.0,0.00055342,120]
[329995753,1718907052169,-524.76,0.00055342,120]
[329995754,1718907052178,-500.0,0.00055342,120]
[329995755,1718907052187,-505.37013858,0.00055342,2]
[329995756,1718907052197,-500.0,0.00055342,120]
[329995757,1718907052206,-500.0,0.00055342,120]
[329995758,1718907052215,-361.43764026,0.00055342,120]
[329995759,1718907052224,-500.0,0.00055342,120]
[329995760,1718907052234,-643.84,0.00055342,120]
[329995761,1718907052243,-500.0,0.00055342,120]
[329995762,1718907052253,-500.0,0.00055342,120]
[329995763,1718907052262,-517.61957829,0.00055342,120]
[329995764,1718907052272,-500.0,0.00055342,120]
[329995765,1718907052281,-500.0,0.00055342,120]
[329995766,1718907052291,-2559.98,0.00055342,120]
[329995767,1718907052300,-500.0,0.00055342,120]
[329995768,1718907052310,-500.0,0.00055342,120]
[329995769,1718907052319,-510.94581015,0.00055342,120]
[329995770,1718907052329,-500.0,0.00055342,120]
[329995771,1718907052338,-500.0,0.00055342,120]
[329995772,1718907052347,-383.27595,0.00055342,120]
[329995773,1718907052357,-500.0,0.00055342,120]
[329995774,1718907052366,-383.27595,0.00055342,120]
[329995775,1718907052376,-500.0,0.00055342,120]
[329995776,1718907052385,-826.16,0.00055342,120]
[329995777,1718907052395,-5871.63,0.00055342,120]
[329995778,1718907052404,-500.0,0.00055342,120]
[329995779,1718907052415,-6888.11,0.00055342,120]
[329995780,1718907052425,-4114.48,0.00055342,120]
[329995781,1718907052434,-151.0,0.00055342,120]
[329995782,1718907052443,-500.0,0.00055342,120]
[329995783,1718907052453,-500.0,0.00055342,120]
[329995784,1718907052462,-1585.31,0.00055342,120]
[329995785,1718907052471,-500.0,0.00055342,120]
[329995786,1718907052480,-500.0,0.00055342,120]
[329995787,1718907052490,-500.0,0.00055342,120]
[329995788,1718907052500,-859.949787,0.00055342,120]
[329995789,1718907052509,-715.91147222,0.00055342,120]
[329995790,1718907052856,-144.03831478,0.00055342,120]
[329995791,1718907052865,-500.0,0.00055342,120]
[329995792,1718907052875,-500.0,0.00055342,120]
[329995793,1718907052885,-500.0,0.00055342,120]
[329995794,1718907052895,-500.0,0.00055342,120]
[329995795,1718907052907,-500.0,0.00055342,120]
[329995796,1718907052920,-1000.0,0.00055342,120]
[329995797,1718907052930,-500.0,0.00055342,120]
[329995798,1718907052940,-500.0,0.00055342,120]
[329995799,1718907052951,-500.0,0.00055342,120]
[329995800,1718907052961,-500.0,0.00055342,120]
[329995801,1718907052970,-500.0,0.00055342,120]
[329995802,1718907052979,-3012.37,0.00055342,120]
[329995803,1718907052991,-500.0,0.00055342,120]
[329995804,1718907053001,-151.0,0.00055342,120]
[329995805,1718907053012,-500.0,0.00055342,120]
[329995806,1718907053022,-500.0,0.00055342,120]
[329995807,1718907053032,-500.0,0.00055342,120]
[329995808,1718907053041,-500.0,0.00055342,120]
[329995809,1718907053051,-500.0,0.00055342,120]
[329995810,1718907053060,-500.0,0.00055342,120]
[329995811,1718907053070,-580.04713733,0.00055342,120]
[329995812,1718907053079,-1268.23,0.00055342,120]
[329995813,1718907053094,-500.0,0.00055342,120]
[329995814,1718907053104,-20545.53716101,0.00055342,120]
[329995815,1718907053174,-2000.0,0.00054694,2]
[329995816,1718907053185,-500.0,0.00055068,120]
[329995817,1718907053195,-26.81283899,0.00055342,120]
[329995818,1718907053204,-500.0,0.00055342,120]
[329995819,1718907053214,-500.0,0.00055342,120]
[329995820,1718907053224,-500.0,0.00055342,120]
[329995821,1718907053233,-500.0,0.00055342,120]
[329995822,1718907053243,-500.0,0.00055342,120]
[329995823,1718907053253,-500.0,0.00055342,120]
[329995824,1718907053263,-500.0,0.00055342,120]
[329995825,1718907053272,-500.0,0.00055342,120]
[329995826,1718907053281,-500.0,0.00055342,120]
[329995827,1718907053291,-500.0,0.00055342,120]
[329995828,1718907053302,-500.0,0.00055342,120]
[329995829,1718907053312,-1774.47,0.00055342,21]
[329995830,1718907053321,-500.0,0.00055342,120]
[329995831,1718907053330,-500.0,0.00055342,60]
[329995832,1718907053339,-507.21653391,0.00055342,120]
[329995833,1718907053349,-500.0,0.00055342,120]
[329995834,1718907053358,-500.0,0.00055342,120]
[329995835,1718907053367,-326.894195,0.00055342,120]
[329995836,1718907053377,-326.894195,0.00055342,120]
[329995837,1718907053386,-151.0,0.00055342,120]
[329995838,1718907053396,-326.894195,0.00055342,120]
[329995839,1718907053405,-326.894195,0.00055342,120]
[329995840,1718907053418,-151.0,0.00055342,120]
[329995841,1718907053426,-3331.04,0.00055342,120]
[329995842,1718907053435,-500.0,0.00055342,120]
[329995843,1718907053448,-151.0,0.00055342,120]
[329995844,1718907053457,-151.0,0.00055342,120]
[329995845,1718907053467,-500.0,0.00055342,120]
[329995846,1718907053476,-502.44468643,0.00055342,120]
[329995847,1718907053486,-500.0,0.00055342,120]
[329995848,1718907053497,-3317.56,0.00055342,120]
[329995849,1718907053506,-500.0,0.00055342,120]
[329995850,1718907053515,-1980.1,0.00055342,120]
[329995851,1718907053525,-500.0,0.00055342,120]
[329995852,1718907053535,-500.0,0.00055342,120]
[329995853,1718907053545,-151.0,0.00055342,120]
[329995854,1718907053554,-151.0,0.00055342,120]
[329995855,1718907053564,-500.0,0.00055342,120]
[329995856,1718907053575,-255.63968812,0.00055342,120]
[329995857,1718907053585,-500.0,0.00055342,120]
[329995858,1718907053595,-151.0,0.00055342,120]
[329995859,1718907053605,-823.45,0.00055342,120]
[329995860,1718907053614,-151.0,0.00055342,120]
[329995861,1718907053624,-782.961,0.00055342,120]
[329995862,1718907053634,-500.0,0.00055342,120]
[329995863,1718907053644,-500.0,0.00055342,120]
[329995864,1718907053656,-782.961,0.00055342,120]
[329995865,1718907053668,-2671.66,0.00055342,120]
[329995866,1718907053678,-500.0,0.00055342,120]
[329995867,1718907053688,-500.0,0.00055342,120]
[329995868,1718907053698,-500.0,0.00055342,120]
[329995869,1718907053708,-500.0,0.00055342,120]
[329995870,1718907053718,-500.0,0.00055342,120]
[329995871,1718907053728,-500.0,0.00055342,120]
[329995872,1718907053737,-500.0,0.00055342,120]
[329995873,1718907053747,-500.0,0.00055342,120]
[329995874,1718907053758,-500.0,0.00055342,120]
[329995875,1718907053768,-500.0,0.00055342,120]
[329995876,1718907053779,-561.51,0.00055342,120]
[329995877,1718907053789,-500.0,0.00055342,120]
[329995878,1718907053799,-220.70240011,0.00055342,120]
[329995879,1718907053808,-501.32530366,0.00055342,120]
[329995880,1718907053818,-500.0,0.00055342,120]
[329995881,1718907053828,-500.0,0.00055342,120]
[329995882,1718907053837,-1624.59,0.00055342,120]
[329995883,1718907053847,-631.95,0.00055342,120]
[329995884,1718907053856,-500.0,0.00055342,120]
[329995885,1718907053866,-500.0,0.00055342,90]
[329995886,1718907053875,-512.22400106,0.00055342,120]
[329995887,1718907053885,-500.0,0.00055342,120]
[329995888,1718907053895,-500.0,0.00055342,120]
[329995889,1718907053905,-551.47,0.00055342,120]
[329995890,1718907053919,-500.0,0.00055342,120]
[329995891,1718907053928,-667.5877085,0.00055342,120]
[329995892,1718907053942,-2241.3622915,0.00055342,120]
[329995893,1718907053953,-1350.09,0.00055342,120]
[329995894,1718907053963,-520.07627658,0.00055342,120]
[329995895,1718907053973,-500.0,0.00055342,120]
[329995896,1718907053983,-500.0,0.00055342,120]
[329995897,1718907053997,-516.31032636,0.00055342,120]
[329995898,1718907054007,-500.0,0.00055342,120]
[329995899,1718907054017,-500.0,0.00055342,120]
[329995900,1718907054027,-500.0,0.00055342,120]
[329995901,1718907054037,-500.0,0.00055342,120]
[329995902,1718907054047,-500.0,0.00055342,120]
[329995903,1718907054057,-500.0,0.00055342,7]
[329995904,1718907054067,-500.0,0.00055342,120]
[329995905,1718907054076,-602.0,0.000555,30]
[329995906,1718907054087,-500.0,0.00055615,120]
[329995907,1718907054097,-500.0,0.00055615,120]
[329995908,1718907054107,-500.0,0.00055615,120]
[329995909,1718907054116,-541.66,0.00055615,120]
[329995910,1718907054126,-541.66,0.00055615,120]
[329995911,1718907054136,-541.66,0.00055615,120]
[329995912,1718907054147,-541.66,0.00055615,120]
[329995913,1718907054157,-541.66,0.00055615,120]
[329995914,1718907054168,-541.66,0.00055615,120]
[329995915,1718907054177,-541.66,0.00055615,120]
[329995916,1718907054187,-541.82,0.00055615,120]
[329995917,1718907054197,-971.09,0.00055616,120]
[329995918,1718907054206,-500.0,0.00055616,120]
[329995919,1718907054216,-500.0,0.00055616,120]
[329995920,1718907054226,-500.0,0.00055616,7]
[329995921,1718907054236,-501.23,0.00055616,120]
[329995922,1718907054247,-500.0,0.00055616,120]
[329995923,1718907054257,-517.50814905,0.00055616,120]
[329995924,1718907054267,-500.0,0.00055616,120]
[329995925,1718907054277,-513.36194162,0.00055616,120]
[329995926,1718907054288,-574.6919229,0.00055616,120]
[329995927,1718907054297,-500.0,0.00055616,120]
[329995928,1718907054307,-500.0,0.00055616,120]
[329995929,1718907054316,-500.0,0.00055616,120]
[329995930,1718907054412,-500.0,0.00055616,120]
[329995931,1718907054422,-405.87276558,0.00055616,120]
[329995932,1718907054431,-151.0,0.00055616,120]
[329995933,1718907054441,-500.0,0.00055616,120]
[329995934,1718907054451,-500.0,0.00055616,120]
[329995935,1718907054460,-250.0,0.00055616,120]
[329995936,1718907054470,-391.2083124,0.00055616,120]
[329995937,1718907054480,-500.0,0.00055616,120]
[329995938,1718907054490,-151.0,0.00055616,120]
[329995939,1718907054500,-503.96890779,0.00055616,120]
[329995940,1718907054510,-506.10830059,0.00055616,120]
[329995941,1718907054520,-500.0,0.00055616,120]
[329995942,1718907054530,-500.0,0.00055616,120]
[329995943,1718907054539,-508.68824509,0.00055616,120]
[329995944,1718907054549,-500.0,0.00055616,120]
[329995945,1718907054559,-500.0,0.00055616,2]
[329995946,1718907054569,-500.0,0.00055616,120]
[329995947,1718907054579,-151.0,0.00055616,120]
[329995948,1718907054588,-500.0,0.00055616,120]
[329995949,1718907054598,-826.52,0.00055616,120]
[329995950,1718907054607,-507.30382136,0.00055616,120]
[329995951,1718907054617,-500.0,0.00055616,120]
[329995952,1718907054626,-500.0,0.00055616,120]
[329995953,1718907054636,-500.0,0.00055616,120]
[329995954,1718907054646,-151.0,0.00055616,120]
[329995955,1718907054657,-500.0,0.00055616,120]
[329995956,1718907054667,-500.0,0.00055616,120]
[329995957,1718907054676,-500.0,0.00055616,120]
[329995958,1718907054685,-500.0,0.00055616,120]
[329995959,1718907054696,-538.86,0.00055616,120]
[329995960,1718907054706,-500.0,0.00055616,120]
[329995961,1718907054716,-500.0,0.00055616,120]
[329995962,1718907054726,-151.0,0.00055616,120]
[329995963,1718907054735,-500.0,0.00055616,120]
[329995964,1718907054745,-500.0,0.00055616,120]
[329995965,1718907054756,-500.0,0.00055616,120]
[329995966,1718907054765,-151.0,0.00055616,120]
[329995967,1718907054775,-500.0,0.00055616,120]
[329995968,1718907054784,-513.73059235,0.00055616,120]
[329995969,1718907054793,-500.0,0.00055616,120]
[329995970,1718907054803,-500.0,0.00055616,120]
[329995971,1718907054813,-505.38882542,0.00055616,120]
[329995972,1718907054824,-500.0,0.00055616,30]
[329995973,1718907054834,-500.0,0.00055616,120]
[329995974,1718907054843,-500.0,0.00055616,120]
[329995975,1718907054853,-500.0,0.00055616,120]
[329995976,1718907054863,-520.4554449,0.00055616,120]
[329995977,1718907054874,-500.0,0.00055616,120]
[329995978,1718907054883,-500.0,0.00055616,120]
[329995979,1718907054893,-500.0,0.00055616,120]
[329995980,1718907054902,-2062.89,0.00055616,120]
[329995981,1718907054914,-500.0,0.00055616,120]
[329995982,1718907054927,-500.0,0.00055616,120]
[329995983,1718907054937,-750.16,0.00055616,120]
[329995984,1718907054946,-500.0,0.00055616,120]
[329995985,1718907054956,-500.0,0.00055616,120]
[329995986,1718907054966,-200.0,0.00055616,7]
[329995987,1718907054976,-500.0,0.00055616,120]
[329995988,1718907054986,-500.0,0.00055616,120]
[329995989,1718907054996,-500.0,0.00055616,120]
[329995990,1718907055007,-500.0,0.00055616,120]
[329995991,1718907055018,-153.021532,0.00055616,120]
[329995992,1718907055029,-500.0,0.00055616,120]
[329995993,1718907055039,-500.0,0.00055616,120]
[329995994,1718907055049,-500.0,0.00055616,120]
[329995995,1718907055059,-153.021532,0.00055616,120]
[329995996,1718907055073,-500.0,0.00055616,120]
[329995997,1718907055083,-509.29384885,0.00055616,120]
[329995998,1718907055094,-500.0,0.00055616,120]
[329995999,1718907055103,-505.71121282,0.00055616,120]
[329996000,1718907055116,-500.0,0.00055616,120]
[329996001,1718907055126,-425.96326871,0.00055616,120]
[329996002,1718907055137,-500.0,0.00055616,120]
[329996003,1718907055146,-500.0,0.00055616,120]
[329996004,1718907055156,-500.0,0.00055616,20]
[329996005,1718907055168,-151.0,0.00055616,120]
[329996006,1718907055178,-500.0,0.00055616,120]
[329996007,1718907055189,-500.0,0.00055616,120]
[329996008,1718907055199,-414.23977976,0.00055616,120]
[329996009,1718907055209,-500.0,0.00055616,120]
[329996010,1718907055219,-500.0,0.00055616,120]
[329996011,1718907055229,-500.0,0.00055616,120]
[329996012,1718907055239,-500.0,0.00055616,120]
[329996013,1718907055250,-500.0,0.00055616,120]
[329996014,1718907055259,-500.0,0.00055616,120]
[329996015,1718907055269,-500.0,0.00055616,120]
[329996016,1718907055279,-609.77,0.00055616,2]
[329996017,1718907055290,-500.0,0.00055616,120]
[329996018,1718907055300,-500.0,0.00055616,120]
[329996019,1718907055310,-151.0,0.00055616,120]
[329996020,1718907055320,-500.0,0.00055616,120]
[329996021,1718907055330,-500.0,0.00055616,120]
[329996022,1718907055340,-500.0,0.00055616,120]
[329996023,1718907055350,-500.0,0.00055616,120]
[329996024,1718907055359,-500.0,0.00055616,120]
[329996025,1718907055369,-500.0,0.00055616,120]
[329996026,1718907055379,-500.0,0.00055616,120]
[329996027,1718907055389,-500.0,0.00055616,120]
[329996028,1718907055398,-500.0,0.00055616,120]
[329996029,1718907055407,-373.06458378,0.00055616,120]
[329996030,1718907055677,250.0,0.00042461,2]
[329996031,1718907055703,-2090.6,0.00054784,3]
[329996032,1718907055714,-416.85953572,0.00054793,4]
[329996033,1718907055724,-500.0,0.00054794,120]
[329996034,1718907055734,-500.0,0.00054794,120]
[329996035,1718907055744,-241.214357,0.00055068,120]
[329996036,1718907055754,-241.214357,0.0005529,120]
[329996037,1718907055764,-241.214357,0.0005529,120]
[329996038,1718907055774,-241.214357,0.00055342,120]
[329996039,1718907055783,-132.75541622,0.00055616,120]
[329996040,1718907055862,-372.66353496,0.00055616,120]
[329996041,1718907056054,3000.0,0.00044193,2]
[329996042,1718907071048,232.13090276,0.00040944,2]
[329996046,1718907424754,2212.73639887,0.000225,30]
[329996056,1718908101540,-394.67124832,0.00020408,2]
[329996057,1718908152313,-31522.28430742,0.00020408,2]
[329996058,1718908152335,-165.982435,0.00021096,2]
[329996059,1718908152355,-534.66083588,0.00021999,2]
[329996060,1718908152378,-226.99170033,0.00024692,2]
[329996061,1718908152399,-577.75967056,0.00025204,2]
[329996062,1718908152423,-155.31154211,0.00026574,2]
[329996063,1718908152444,-176.2545406,0.00026708,2]
[329996064,1718908152464,-527.7524508,0.00026808,2]
[329996065,1718908152484,-1526.8414083,0.0003181,2]
[329996066,1718908152504,-836.578463,0.00032569,2]
[329996067,1718908152525,-153.0,0.00033563,2]
[329996068,1718908152548,-161.006896,0.000341,2]
[329996069,1718908152568,-175.973485,0.00035156,2]
[329996070,1718908152588,-2593.7518855,0.00035764,2]
[329996071,1718908152609,-175.973485,0.00037552,2]
[329996072,1718908152629,-165.982435,0.00037652,2]
[329996073,1718908152649,-188.5681573,0.00039582,15]
[329996074,1718908152671,-416.10359896,0.00039582,15]
[329996075,1718908152691,-310.54526202,0.00039582,15]
[329996076,1718908152711,-179.6358783,0.00039582,15]
[329996077,1718908152732,-507.22392797,0.00039582,15]
[329996078,1718908152754,-500.0,0.00039582,15]
[329996079,1718908152774,-439.99236702,0.00039582,15]
[329996080,1718908152795,-1293.37951941,0.00039583,2]
[329996134,1718908234683,-1706.62048059,0.00039583,2]
[329996137,1718908234693,-6040.89729438,0.00039583,2]
[329996153,1718908234839,-2196.33745249,0.00039583,2]
[329996186,1718908238862,-16662.76525313,0.00039583,2]
[329996187,1718908238873,-175.973485,0.00039948,2]
[329996188,1718908238883,-176.2545406,0.00040701,2]
[329996189,1718908238892,-4591.48290891,0.00048499,4]
[329996191,1718908238902,-1903.46816559,0.00048754,28]
[329996192,1718908238911,-836.578463,0.00048854,2]
[329996193,1718908238921,-1308.80475758,0.0005,120]
[329996194,1718908238931,-153.0,0.00052119,7]
[329996195,1718908238940,-153.0,0.00052125,7]
[329996196,1718908238950,-153.0,0.00052125,7]
[329996197,1718908238960,-153.0,0.00052125,7]
[329996198,1718908238969,-153.0,0.00052125,7]
[329996199,1718908238980,-153.0,0.00052125,7]
[329996200,1718908238989,-151.0,0.000527,120]
[329996201,1718908238999,-570.25162125,0.00052899,120]
[329996202,1718908239008,-291.27251927,0.00052899,120]
[329996203,1718908239018,-26688.0,0.000529,120]
[329996204,1718908239029,-165.982435,0.00054207,2]
[329996205,1718908239039,-14595.57,0.0005448,120]
[329996206,1718908239049,-8866.0,0.000545,120]
[329996207,1718908239059,-2000.0,0.00054694,2]
[329996208,1718908239069,-176.2545406,0.00054694,2]
[329996209,1718908239079,-337.53179808,0.00054769,4]
[329996210,1718908239089,-753.56216032,0.00054769,4]
[329996211,1718908239099,-150.5,0.0005477,62]
[329996212,1718908239108,-153.0,0.0005477,62]
[329996213,1718908239119,-187.0,0.0005477,62]
[329996214,1718908239129,-228.0,0.0005477,62]
[329996215,1718908239139,-150.5,0.0005477,62]
[329996216,1718908239149,-225.0,0.0005477,62]
[329996217,1718908239159,-150.5,0.0005477,62]
[329996218,1718908239169,-150.5,0.0005478,62]
[329996219,1718908239178,-153.0,0.0005478,62]
[329996220,1718908239187,-187.0,0.0005478,62]
[329996221,1718908239196,-228.0,0.0005478,62]
[329996222,1718908239205,-150.5,0.0005478,62]
[329996223,1718908239215,-225.0,0.0005478,62]
[329996224,1718908239224,-1659.81,0.00054783,3]
[329996225,1718908239236,-1991.77,0.00054784,3]
[329996226,1718908239245,-150.5,0.0005479,62]
[329996227,1718908239255,-153.0,0.0005479,62]
[329996228,1718908239265,-187.0,0.0005479,62]
[329996229,1718908239275,-228.0,0.0005479,62]
[329996230,1718908239285,-150.5,0.0005479,62]
[329996231,1718908239294,-225.0,0.0005479,62]
[329996232,1718908239305,-500.0,0.00054793,120]
[329996233,1718908239318,-500.0,0.00054793,120]
[329996234,1718908239327,-500.0,0.00054793,120]
[329996235,1718908239336,-500.0,0.00054793,120]
[329996236,1718908239347,-500.0,0.00054793,120]
[329996237,1718908239356,-432.62735123,0.00054793,120]
[329996238,1718908239365,-500.0,0.00054793,120]
[329996239,1718908239375,-200.0,0.00054793,120]
[329996240,1718908239384,-3531.18602103,0.00054794,61]
[329996241,1718908239395,-501.86308992,0.00054794,120]
[329996242,1718908239405,-500.0,0.00054794,120]
[329996243,1718908239415,-500.0,0.00054794,120]
[329996244,1718908239424,-500.0,0.00054794,120]
[329996245,1718908239433,-500.0,0.00054794,120]
[329996246,1718908239443,-500.0,0.00054794,120]
[329996247,1718908239452,-500.0,0.00054794,120]
[329996248,1718908239461,-500.0,0.00054794,120]
[329996249,1718908239470,-328.634412,0.00054794,120]